bitfinex-derivatives/quotes_ETHF0:USTF0_20250709
["timestamp","ask_amount","ask_price","bid_price","bid_amount"]
[1752069714217,0.7537,2653.3,2653.2,2.41008]
[1752069715715,0.75367,2653.4,2653.3,0.75364]
[1752069716021,2.31061376,2653.4,2653.3,1.75854]
[1752069716211,2.31061376,2653.4,2653.3,1.0049]
[1752069716415,2.31061376,2653.4,2653.3,1.6564]
[1752069716818,2.31061376,2653.4,2653.3,2.41007]
[1752069718622,3.21344239,2653.9,2653.4,1.88405]
[1752069718823,29.16484837,2653.8,2653.7,0.75354]
[1752069719022,29.16484837,2653.8,2653.7,2.40994]
[1752069719419,2.31184837,2653.8,2653.7,1.6564]
[1752069719725,2.31184837,2653.8,2653.7,2.40996]
[1752069719920,1.55828837,2653.8,2653.7,2.40996]
[1752069720128,1.55828837,2653.8,2653.7,5.71732327]
[1752069720321,1.55828837,2653.8,2653.7,10.71732327]
[1752069720521,1.55828837,2653.8,2653.7,5.71732327]
[1752069720723,0.00564239,2653.9,2653.8,0.75353]
[1752069721019,0.00564239,2653.9,2653.8,2.40993]
[1752069721222,2.31669335,2653.9,2653.8,2.40993]
[1752069723424,0.00564239,2653.9,2653.8,2.40993]
[1752069723729,3.2078,2654.5,2654.4,0.75336]
[1752069723924,4.76487774,2654.5,2654.4,2.40976]
[1752069724324,5.51820774,2654.5,2654.4,2.40976]
[1752069724928,35.38194101,2654.5,2653.7,1.0049]
[1752069725127,0.75353,2653.9,2653.8,0.75351]
[1752069725332,3.48427774,2654.4,2653.8,0.75351]
[1752069725333,1.9272,2654.4,2654.3,0.75339]
[1752069725632,3.2078,2654.5,2654.4,0.75336]
[1752069725824,4.76402203,2654.5,2654.4,2.40976]
[1752069726228,0.7533,2654.6,2654.5,0.75333]
[1752069726425,1.3182,2654.8,2654.6,0.6515]
[1752069726426,2.30899891,2654.7,2654.6,0.6515]
[1752069726630,2.30910041,2654.7,2654.6,0.6515]
[1752069726827,1.55580041,2654.7,2654.6,1.40478]
[1752069727029,1.55580041,2654.7,2654.6,2.40968]
[1752069727331,3.2078,2654.9,2654.8,0.75324]
[1752069727525,0.75322,2654.9,2654.8,0.75324]
[1752069727723,0.75318,2655.1,2655.0,0.75315]
[1752069727923,1.55310314,2655.2,2655.1,0.75316]
[1752069728121,1.55309596,2655.2,2655.1,0.75316]
[1752069728323,1.55309596,2655.2,2655.1,1.75806]
[1752069728527,3.2078,2655.3,2655.2,0.75313]
[1752069728727,3.9609,2655.3,2655.2,0.75313]
[1752069728923,6.8549716,2655.3,2655.2,0.75313]
[1752069729434,5.3032,2655.3,2655.2,0.75313]
[1752069730732,0.75318,2655.1,2655.0,0.75316]
[1752069730923,4.5501,2655.3,2654.8,1.7275]
[1752069731131,31.3861,2655.3,2655.2,0.75313]
[1752069731430,32.1392,2655.3,2655.2,0.75313]
[1752069732031,4.5501,2655.3,2655.2,1.75803]
[1752069732230,1.46395,2655.5,2655.4,0.75307]
[1752069732428,28.29595,2655.5,2655.4,0.75307]
[1752069732929,28.29595,2655.5,2655.4,1.40457]
[1752069733130,1.46395,2655.5,2655.4,1.40457]
[1752069733429,0.75305,2655.5,2655.4,2.40947]
[1752069733629,27.58404,2655.6,2655.5,0.75305]
[1752069733829,1.8039,2655.6,2655.5,1.40455]
[1752069734134,28.171,2655.6,2655.5,2.40945]
[1752069734523,3.2078,2655.7,2655.6,0.75302]
[1752069734722,3.2078,2655.7,2655.6,1.40452]
[1752069734929,4.42469,2655.7,2655.6,1.40452]
[1752069735234,4.9257,2655.7,2655.6,1.40452]
[1752069735634,3.96079,2655.7,2655.6,2.40942]
[1752069736132,5.67869,2655.7,2655.6,0.6515]
[1752069736430,5.67869,2655.7,2655.1,0.75313]
[1752069736431,0.75315,2655.2,2655.1,0.75313]
[1752069736632,0.75319,2655.1,2655.0,0.75316]
[1752069736836,7.14597327,2655.1,2654.7,3.2078]
[1752069737133,0.75332,2654.6,2654.5,0.7533]
[1752069737534,0.75335,2654.5,2654.4,0.75334]
[1752069738327,26.824,2654.8,2654.4,1.0049]
[1752069738529,27.57726,2654.8,2654.7,0.75324]
[1752069738732,0.75329,2654.7,2654.6,0.75329]
[1752069738931,0.75332,2654.6,2654.5,0.75332]
[1752069739132,0.75333,2654.5,2654.4,0.75334]
[1752069739328,55.63953,2654.5,2654.4,0.75334]
[1752069740937,53.648,2654.7,2654.6,0.7533]
[1752069741329,3.2078,2655.3,2655.2,0.75313]
[1752069741537,56.8538,2655.3,2655.2,0.75313]
[1752069741836,56.8538,2655.3,2654.7,1.88315]
[1752069742036,56.8538,2655.3,2655.2,0.75313]
[1752069742433,53.646,2655.3,2655.2,0.75313]
[1752069743235,0.75315,2655.2,2655.1,0.75314]
[1752069743539,0.75317,2655.1,2655.0,0.75316]
[1752069743740,53.642,2655.1,2655.0,5.07172327]
[1752069744037,45.64225675,2655.1,2655.0,10.07172327]
[1752069744238,45.64225675,2655.1,2655.0,11.36452327]
[1752069746442,45.64225675,2655.1,2655.0,6.36452327]
[1752069747142,0.6753,2655.7,2655.6,0.75302]
[1752069747345,53.63,2655.7,2655.6,1.76422]
[1752069749446,3.2078,2656.0,2655.9,0.75293]
[1752069749739,32.81715205,2656.0,2655.9,0.75293]
[1752069749940,6.00515205,2656.0,2655.9,0.75293]
[1752069750146,32.81515205,2656.0,2655.9,0.75293]
[1752069750544,31.2661,2656.0,2655.9,1.76413]
[1752069750749,31.2661,2656.0,2655.9,0.75293]
[1752069750942,28.0573,2656.0,2655.9,0.75293]
[1752069752245,1.2483,2656.0,2655.9,0.75293]
[1752069752443,28.0563,2656.0,2655.9,0.75293]
[1752069752643,28.0563,2656.0,2655.5,3.2078]
[1752069752644,0.75295,2655.9,2655.8,0.75293]
[1752069752946,1.3676,2655.9,2655.8,0.75293]
[1752069753145,28.1726,2655.9,2655.8,0.75293]
[1752069753741,3.2078,2656.0,2655.9,0.75293]
[1752069754447,4.75629571,2656.0,2655.9,0.75293]
[1752069754649,31.56029571,2656.0,2655.9,0.75293]
[1752069755246,31.56029571,2656.0,2655.9,2.42923]
[1752069755247,30.0108,2656.0,2655.9,2.42923]
[1752069755443,31.55995252,2656.0,2655.9,2.42923]
[1752069755648,32.02805252,2656.0,2655.9,2.42923]
[1752069755842,31.55995252,2656.0,2655.9,2.42923]
[1752069756250,32.02805252,2656.0,2655.9,2.42923]
[1752069756441,32.02705252,2656.0,2655.9,2.42923]
[1752069756746,32.77995252,2656.0,2655.9,1.41803]
[1752069756941,0.75306,2655.6,2655.5,0.75302]
[1752069757248,0.75308,2655.5,2655.4,0.75305]
[1752069757451,2.70718,2655.5,2655.4,0.75305]
[1752069757746,28.7531,2655.5,2655.1,3.2078]
[1752069757942,28.7531,2655.5,2654.7,0.6905]
[1752069757943,3.2078,2655.2,2654.7,0.6905]
[1752069758139,3.2078,2654.9,2654.5,1.0112]
[1752069758339,0.75329,2654.7,2654.6,0.75327]
[1752069758737,2.01919,2654.7,2654.6,0.75327]
[1752069758948,2.01917,2654.7,2654.6,0.75327]
[1752069759348,1.2659,2654.7,2654.6,0.75327]
[1752069759845,28.0649,2654.7,2654.6,0.75327]
[1752069760451,28.81817,2654.7,2654.6,0.75327]
[1752069761150,0.75333,2654.6,2654.5,0.75332]
[1752069761349,0.75333,2654.5,2654.4,3.96113]
[1752069761550,26.797,2654.5,2654.4,0.75333]
[1752069761751,26.797,2654.5,2654.3,0.75338]
[1752069761956,0.75338,2654.4,2654.3,0.75338]
[1752069762258,2.02577,2654.4,2654.3,0.75339]
[1752069762555,1.2724,2654.4,2654.3,0.75339]
[1752069763154,26.797,2654.4,2654.3,0.75339]
[1752069764261,5.1684,2654.8,2654.3,5.19081327]
[1752069764461,26.796,2654.7,2654.6,4.06066327]
[1752069764663,3.2078,2655.1,2655.0,0.75319]
[1752069764961,4.7559628,2655.1,2655.0,1.76439]
[1752069765163,1.5481628,2655.1,2655.0,1.76439]
[1752069765358,28.3451628,2655.1,2655.0,1.76439]
[1752069765563,1.5481628,2655.1,2655.0,1.76439]
[1752069766065,3.2078,2655.5,2655.4,0.75307]
[1752069766265,4.75904627,2655.5,2655.4,0.75307]
[1752069766461,1.55124627,2655.5,2655.4,6.76427]
[1752069766668,3.2078,2655.9,2655.8,0.75296]
[1752069766966,4.75930964,2655.9,2655.8,1.76416]
[1752069767263,30.0028,2656.2,2656.1,0.75288]
[1752069767465,31.55455713,2656.2,2656.1,1.76408]
[1752069768263,54.258,2656.4,2656.3,0.75282]
[1752069768464,83.35495722,2656.4,2656.3,1.76402]
[1752069768664,84.61425722,2656.4,2656.3,1.0112]
[1752069769564,84.61325722,2656.4,2656.3,1.76402]
[1752069769760,84.61325722,2656.4,2656.3,1.0112]
[1752069770259,83.86046722,2656.4,2655.9,0.9329]
[1752069770465,0.75286,2656.2,2656.1,0.75287]
[1752069770665,27.54286,2656.2,2656.1,0.75287]
[1752069770867,28.0493,2656.2,2656.1,1.68577]
[1752069771059,28.80215,2656.2,2656.0,0.75289]
[1752069771363,3.2078,2656.1,2655.8,0.9329]
[1752069771665,3.2078,2656.1,2655.8,4.24026327]
[1752069771869,26.786,2656.0,2655.9,0.75293]
[1752069772058,3.2078,2656.1,2656.0,0.7529]
[1752069773669,27.53682,2656.3,2655.8,4.89206327]
[1752069773670,27.53682,2656.3,2656.2,0.75285]
[1752069774065,0.75286,2656.2,2656.1,0.75285]
[1752069774261,0.75289,2656.1,2656.0,0.75289]
[1752069774466,3.2078,2656.1,2655.8,0.9329]
[1752069774667,5.85429327,2656.5,2655.9,1.68583]
[1752069774668,26.78,2656.0,2655.9,1.68583]
[1752069774962,26.78,2656.2,2655.9,0.9329]
[1752069775169,1.3593,2656.4,2656.2,0.75283]
[1752069775363,3.2078,2656.8,2656.7,0.75271]
[1752069775568,3.2078,2657.1,2656.7,5.18912327]
[1752069775772,3.2078,2657.1,2657.0,0.75262]
[1752069776267,3.2078,2657.1,2657.0,4.05998327]
[1752069776872,3.96039,2657.1,2657.0,0.75262]
[1752069777170,5.31969,2657.1,2657.0,0.75262]
[1752069777366,5.31969,2657.1,2656.5,3.2078]
[1752069777367,4.5671,2657.1,2656.5,3.2078]
[1752069777571,0.75269,2656.8,2656.7,0.75271]
[1752069777961,28.0212,2656.9,2656.6,0.75272]
[1752069778165,28.0212,2656.9,2656.2,6.46724327]
[1752069778166,3.2078,2656.8,2656.7,0.9329]
[1752069778372,27.52565,2656.9,2656.8,0.75266]
[1752069778565,1.42873,2657.0,2656.9,0.75265]
[1752069778760,28.6963,2657.0,2656.9,0.75265]
[1752069779161,3.2078,2657.1,2657.0,0.75262]
[1752069779364,30.73239,2657.1,2657.0,0.9329]
[1752069779571,29.9798,2657.1,2656.6,0.9329]
[1752069779869,0.75266,2656.9,2656.8,0.75267]
[1752069780060,1.2472,2657.0,2656.4,6.02265]
[1752069780264,1.2472,2656.8,2656.7,0.75271]
[1752069780461,1.2472,2656.8,2656.7,1.68561]
[1752069780668,0.75272,2656.7,2656.6,0.75272]
[1752069780866,0.75276,2656.5,2656.4,0.75279]
[1752069781065,2.07405,2656.6,2656.5,0.75276]
[1752069781262,0.75279,2656.4,2656.3,0.7528]
[1752069781973,5.77872,2656.8,2656.7,0.75271]
[1752069781974,30.665,2656.8,2656.7,0.75271]
[1752069782168,27.52068,2656.8,2656.7,1.68561]
[1752069782866,0.75267,2656.9,2656.8,0.75266]
[1752069783070,27.51866,2656.9,2656.8,0.75268]
[1752069783266,26.766,2656.9,2656.8,0.9329]
[1752069783470,26.766,2656.9,2656.8,1.68558]
[1752069783672,5.28172,2657.1,2657.0,0.75262]
[1752069783870,0.75264,2657.0,2656.9,0.75263]
[1752069784178,0.75265,2656.9,2656.8,0.9329]
[1752069784377,2.04135,2656.9,2656.8,1.68558]
[1752069784566,2.04135,2656.9,2656.8,0.9329]
[1752069784970,2.04135,2656.9,2656.8,1.68558]
[1752069785272,2.04135,2656.9,2656.7,0.75269]
[1752069785273,0.75271,2656.8,2656.7,0.75269]
[1752069785463,0.75271,2656.8,2656.5,0.9329]
[1752069785464,0.75273,2656.7,2656.6,0.75271]
[1752069786370,0.75273,2656.6,2656.5,1.68566]
[1752069786770,0.75276,2656.5,2656.4,0.75277]
[1752069787074,2.10876,2656.5,2656.4,0.75277]
[1752069787374,0.75285,2656.2,2656.1,0.75285]
[1752069787570,4.5638,2656.5,2656.4,0.75279]
[1752069787874,0.75276,2656.6,2656.5,0.75274]
[1752069788065,27.51376,2656.6,2656.5,0.75274]
[1752069788271,0.75279,2656.5,2656.4,0.75277]
[1752069788571,28.86875,2656.6,2656.5,0.75276]
[1752069788761,54.243,2657.8,2656.1,2.58438]
[1752069788762,3.2078,2657.5,2656.2,1.3055]
[1752069788967,3.2078,2657.3,2656.9,0.75263]
[1752069789170,0.75256,2657.2,2656.9,0.75263]
[1752069789473,2.10856,2657.2,2657.1,0.75259]
[1752069790064,1.356,2657.2,2657.1,0.75259]
[1752069790573,2.10856,2657.2,2657.1,0.75259]
[1752069790971,2.2936,2657.2,2656.7,0.666]
[1752069791170,2.2936,2657.2,2656.9,0.75265]
[1752069791171,3.96045,2657.0,2656.9,0.75265]
[1752069791965,0.75267,2656.9,2656.8,0.75266]
[1752069792170,1.2347,2656.9,2656.8,0.75266]
[1752069792665,1.98735,2656.9,2656.8,0.75266]
[1752069793175,1.2347,2656.9,2656.8,0.75266]
[1752069793573,0.75269,2656.8,2656.7,0.75268]
[1752069794170,1.2347,2656.9,2656.5,3.2078]
[1752069794171,0.75274,2656.6,2656.5,0.75275]
[1752069794370,0.75274,2656.6,2656.3,0.666]
[1752069794577,0.75278,2656.5,2656.3,0.666]
[1752069794773,1.2529,2656.7,2656.2,3.2078]
[1752069794974,0.6852,2657.0,2655.8,1.88238]
[1752069794975,1.88205,2656.3,2655.8,0.75294]
[1752069795172,1.88205,2656.3,2655.9,0.75291]
[1752069795173,0.75292,2656.0,2655.9,0.75291]
[1752069795572,29.6277,2656.2,2656.0,0.75289]
[1752069795573,0.75289,2656.1,2656.0,0.75289]
[1752069795773,0.75289,2656.1,2655.7,5.77435]
[1752069795774,1.2529,2656.2,2655.7,4.1407]
[1752069795975,0.75296,2655.9,2655.8,0.75295]
[1752069796272,0.75292,2656.0,2655.9,0.75292]
[1752069796471,2.1905,2656.2,2655.8,0.75294]
[1752069796472,0.75294,2655.9,2655.8,0.75294]
[1752069796874,0.75292,2656.0,2655.9,0.75292]
[1752069798677,0.75289,2656.1,2656.0,0.75289]
[1752069798975,0.75283,2656.3,2655.8,3.30736327]
[1752069799173,0.75283,2656.3,2656.2,0.75285]
[1752069800281,0.75286,2656.2,2656.1,0.75285]
[1752069801173,0.7529,2656.0,2655.9,3.2078]
[1752069801374,0.75302,2655.6,2655.5,0.6893]
[1752069801782,0.75307,2655.4,2655.3,0.7531]
[1752069802079,0.75308,2655.5,2655.4,0.75305]
[1752069802473,0.75312,2655.3,2655.2,0.7531]
[1752069802674,0.75316,2655.1,2655.0,3.2078]
[1752069802872,0.75316,2655.1,2655.0,3.96099]
[1752069803074,0.7533,2654.7,2654.6,0.75329]
[1752069803374,0.75324,2654.9,2654.8,0.75323]
[1752069803579,0.75334,2654.5,2654.4,0.75333]
[1752069803783,0.75331,2654.6,2654.5,0.75331]
[1752069804178,0.75326,2654.8,2654.7,0.75327]
[1752069804377,2.10522,2654.9,2654.8,0.75324]
[1752069804674,0.75325,2654.8,2654.7,0.75325]
[1752069805180,0.75323,2654.9,2654.8,0.75322]
[1752069805381,0.75326,2654.8,2654.7,0.75326]
[1752069805582,0.75327,2654.7,2654.6,3.2078]
[1752069805772,3.2078,2654.9,2654.2,4.7855]
[1752069805971,0.75329,2654.7,2654.6,0.75329]
[1752069806481,0.75329,2654.7,2654.6,0.7533]
[1752069807178,3.2078,2655.2,2654.5,3.2078]
[1752069807379,0.75323,2654.9,2654.8,0.75323]
[1752069807579,26.753,2655.1,2654.6,0.75328]
[1752069807580,0.75328,2654.7,2654.6,0.75328]
[1752069807977,0.75335,2654.5,2654.4,0.75334]
[1752069808182,0.75335,2654.5,2654.4,0.75335]
[1752069808382,0.75339,2654.3,2654.2,4.60049]
[1752069808585,0.9731,2654.7,2654.2,3.8471]
[1752069808780,3.2078,2654.9,2654.2,4.7855]
[1752069808978,0.75329,2654.7,2654.6,0.75328]
[1752069809173,4.4755,2654.9,2654.4,0.75334]
[1752069809381,0.75334,2654.5,2654.4,0.75333]
[1752069809782,1.8834,2654.4,2653.7,0.9384]
[1752069809984,0.7535,2653.9,2653.8,0.75353]
[1752069810376,0.75353,2653.8,2653.7,0.9384]
[1752069810582,2.02123,2653.8,2653.7,0.9384]
[1752069810882,2.02123,2653.8,2653.7,1.69196]
[1752069811075,1.2677,2653.8,2653.7,1.69196]
[1752069811281,26.753,2653.9,2653.8,0.75353]
[1752069811482,3.2078,2653.9,2653.7,1.69193]
[1752069811775,2.04903,2653.8,2653.7,0.9384]
[1752069813081,1.88392,2653.7,2652.9,5.27784795]
[1752069813286,0.7537,2653.3,2653.2,0.75369]
[1752069813785,0.75376,2653.0,2652.9,3.39339795]
[1752069814390,0.75376,2653.0,2652.9,0.18559795]
[1752069814884,1.72686,2653.0,2652.9,0.18559795]
[1752069815581,1.72686,2653.0,2652.9,0.93937795]
[1752069816188,28.48686,2653.0,2652.9,0.93937795]
[1752069816577,4.5567,2653.2,2653.1,0.75373]
[1752069816782,28.1079,2653.2,2653.1,0.75373]
[1752069816982,28.8616,2653.2,2653.1,0.75373]
[1752069817183,28.1079,2653.2,2653.1,0.75373]
[1752069817582,42.4294,2653.4,2653.3,0.75367]
[1752069817583,41.7731,2653.4,2653.3,0.75367]
[1752069817785,26.758,2653.4,2653.3,0.75367]
[1752069818187,58.22343,2653.5,2653.1,0.75373]
[1752069818188,57.4698,2653.5,2653.4,0.75364]
[1752069818586,81.02,2653.5,2653.4,0.75364]
[1752069819486,26.758,2653.5,2653.4,0.75364]
[1752069819686,0.75359,2653.6,2653.5,0.75361]
[1752069819881,6.21845,2653.8,2653.4,1.88411]
[1752069820090,3.2078,2653.8,2653.7,0.75356]
[1752069820285,29.9678,2653.8,2653.7,0.75356]
[1752069820491,29.9668,2653.8,2653.7,0.75356]
[1752069820984,31.287,2653.8,2653.7,0.75356]
[1752069821191,29.9668,2653.8,2653.7,0.75356]
[1752069821487,4.93434,2654.1,2654.0,0.75347]
[1752069821688,31.69334,2654.1,2654.0,0.75347]
[1752069821890,0.75351,2654.0,2653.9,0.75349]
[1752069822491,0.75351,2654.0,2653.8,0.00565323]
[1752069822492,3.96126,2654.1,2654.0,0.75347]
[1752069822787,0.7535,2654.0,2653.9,0.75348]
[1752069823579,27.5115,2654.0,2653.9,0.75348]
[1752069824386,0.7535,2654.0,2653.9,0.75348]
[1752069824589,27.5105,2654.0,2653.9,0.75348]
[1752069825193,55.5992,2654.3,2653.8,1.88945323]
[1752069825494,0.7535,2653.9,2653.8,0.75916323]
[1752069826290,0.9731,2654.2,2653.8,0.00565323]
[1752069826488,27.50844,2654.1,2654.0,0.75347]
[1752069826684,0.75344,2654.1,2654.0,0.75347]
[1752069826885,1.72654,2654.2,2654.1,0.75344]
[1752069827188,0.75344,2654.2,2654.1,0.75344]
[1752069827390,1.88305,2654.9,2654.2,1.88354]
[1752069827687,0.75328,2654.7,2654.6,0.75327]
[1752069827890,1.72638,2654.7,2654.6,0.75327]
[1752069828090,2.3191,2654.7,2654.6,0.75327]
[1752069828288,28.29089331,2654.7,2654.6,0.75327]
[1752069828691,29.26399331,2654.7,2654.6,0.75327]
[1752069829090,28.47937,2654.7,2654.6,0.75327]
[1752069829294,0.9731,2654.7,2654.6,0.75327]
[1752069829488,28.47837,2654.7,2654.6,0.75327]
[1752069829798,0.75336,2654.5,2654.3,3.2078]
[1752069829999,0.75336,2654.5,2654.4,0.75332]
[1752069830198,0.75334,2654.6,2654.5,0.75331]
[1752069830494,0.75334,2654.6,2654.4,0.75334]
[1752069830495,0.75337,2654.5,2654.4,0.75334]
[1752069830698,0.9551,2654.9,2654.2,1.88352]
[1752069830994,0.7533,2654.7,2654.6,0.75327]
[1752069831196,0.75326,2654.8,2654.7,0.75324]
[1752069831597,29.040775,2654.8,2654.7,0.75324]
[1752069831799,0.7533,2654.7,2654.6,0.75328]
[1752069832099,28.4564,2654.7,2654.6,0.75328]
[1752069832288,31.29459529,2654.7,2654.6,0.75328]
[1752069833099,29.58619529,2654.7,2654.6,0.75328]
[1752069833300,28.28919529,2654.7,2654.6,0.75328]
[1752069833496,29.04246529,2654.7,2654.6,0.75328]
[1752069833794,29.04246529,2654.7,2654.4,0.6447]
[1752069833795,29.24429529,2654.7,2654.4,0.6447]
[1752069833997,0.75342,2654.3,2654.2,0.75339]
[1752069834299,28.45352,2654.3,2654.2,0.75339]
[1752069834599,29.99583009,2654.3,2654.2,0.75339]
[1752069834803,28.28731009,2654.3,2654.2,0.75339]
[1752069835390,26.744,2654.3,2654.2,0.75339]
[1752069835793,2.83823,2654.8,2654.2,0.75339]
[1752069835794,0.9551,2654.8,2654.7,0.75327]
[1752069835999,29.99445998,2654.8,2654.7,0.75327]
[1752069837094,29.03735998,2654.8,2654.7,0.75327]
[1752069837299,29.99245998,2654.8,2654.7,0.75327]
[1752069837798,28.28411998,2654.8,2654.7,0.75327]
[1752069837997,1.54211998,2654.8,2654.7,0.75327]
[1752069838194,26.741,2654.8,2654.7,0.75327]
[1752069838501,4.91601,2655.3,2655.2,0.75313]
[1752069838703,33.19837038,2655.3,2655.2,0.75313]
[1752069839304,0.75313,2655.2,2655.1,0.75314]
[1752069839499,2.29514441,2655.2,2655.1,0.75314]
[1752069839998,0.75319,2655.1,2655.0,0.75317]
[1752069840199,0.75325,2654.9,2654.8,0.75322]
[1752069840404,28.44535,2654.9,2654.8,0.75322]
[1752069840705,29.98736441,2654.9,2654.8,0.75322]
[1752069841600,29.03226441,2654.9,2654.8,0.75322]
[1752069842001,0.75327,2654.7,2654.6,3.96109]
[1752069842396,1.54080173,2654.7,2654.6,3.96109]
[1752069842604,0.75316,2655.1,2655.0,0.75319]
[1752069842805,29.0292916,2655.1,2655.0,0.75319]
[1752069843302,0.75326,2654.8,2654.7,0.75324]
[1752069843702,0.75327,2654.7,2654.6,3.2078]
[1752069843902,0.75327,2654.7,2654.4,0.6554]
[1752069843903,0.75333,2654.5,2654.4,0.6554]
[1752069844103,0.75333,2654.5,2654.4,1.40873]
[1752069844303,0.75333,2654.6,2654.5,0.7533]
[1752069845104,0.75328,2654.7,2654.6,0.7533]
[1752069845306,2.29555203,2654.7,2654.6,0.7533]
[1752069845505,0.75333,2654.5,2654.4,1.40873]
[1752069846411,0.75336,2654.4,2654.3,3.96117]
[1752069846611,1.99836,2654.4,2654.3,3.96117]
[1752069847408,1.245,2654.4,2654.3,3.96117]
[1752069847708,0.75334,2654.5,2654.4,0.75336]
[1752069847906,2.29751255,2654.5,2654.4,0.75336]
[1752069848111,2.29751732,2654.5,2654.4,0.75336]
[1752069848412,4.59581732,2654.5,2654.4,0.75336]
[1752069848611,0.75336,2654.4,2654.3,3.2078]
[1752069848810,0.75345,2654.1,2654.0,3.2078]
[1752069849212,1.70855,2654.1,2654.0,3.96127]
[1752069849413,0.75345,2654.1,2654.0,3.96127]
[1752069849714,0.75343,2654.2,2654.1,0.75341]
[1752069849916,1.54557847,2654.2,2654.1,0.75341]
[1752069850508,2.29898847,2654.2,2654.1,0.75341]
[1752069851510,2.29898847,2654.2,2653.8,2.59004323]
[1752069851511,0.75348,2654.1,2654.0,0.75345]
[1752069851712,1.54557847,2654.1,2654.0,0.75345]
[1752069852009,26.727,2654.3,2654.2,0.75341]
[1752069852211,1.54853552,2654.3,2654.2,0.75341]
[1752069853215,2.17663552,2654.3,2654.2,0.75341]
[1752069853409,2.17663552,2654.3,2654.2,1.38231]
[1752069853605,2.17663552,2654.3,2654.2,0.75341]
[1752069853805,2.93002552,2654.3,2654.2,1.38231]
[1752069854006,2.93002552,2654.3,2654.2,0.75341]
[1752069854007,3.88512552,2654.3,2654.2,0.75341]
[1752069854719,0.75344,2654.1,2654.0,0.75345]
[1752069854919,2.9322425,2654.1,2654.0,0.75345]
[1752069855120,2.3041425,2654.1,2654.0,0.75345]
[1752069855818,3.6162425,2654.1,2654.0,0.75345]
[1752069856020,2.3041425,2654.1,2654.0,0.75345]
[1752069856315,3.2592425,2654.1,2654.0,0.75345]
[1752069856521,4.5179425,2654.1,2654.0,0.75345]
[1752069856917,0.9551,2654.4,2654.2,0.75339]
[1752069857118,29.01913301,2654.3,2654.2,0.75339]
[1752069857622,29.97423301,2654.3,2654.2,0.75339]
[1752069857921,31.86103301,2654.3,2654.2,0.75339]
[1752069858116,31.10763301,2654.3,2653.8,0.00565323]
[1752069858315,0.7535,2654.0,2653.9,0.7535]
[1752069858521,0.6281,2654.0,2653.9,0.7535]
[1752069858717,0.6281,2654.0,2653.9,1.3824]
[1752069858913,27.47444,2654.2,2654.1,0.75344]
[1752069859115,2.17128062,2654.2,2654.1,0.75344]
[1752069859319,1.54318062,2654.2,2654.1,1.38234]
[1752069859621,1.54318062,2654.2,2654.1,1.44394]
[1752069859821,1.54318062,2654.2,2654.1,7.07284]
[1752069860023,3.96117,2654.4,2654.3,0.75339]
[1752069860219,6.13264692,2654.4,2654.3,0.75339]
[1752069860526,5.37927692,2654.4,2654.3,1.38229]
[1752069860723,2.17147692,2654.4,2654.3,0.75339]
[1752069860920,2.17147692,2654.4,2654.3,1.37129]
[1752069861126,0.75343,2654.2,2654.1,0.75342]
[1752069861327,0.7534,2654.3,2654.2,0.7534]
[1752069861522,0.75342,2654.2,2654.1,0.75343]
[1752069861824,1.54399396,2654.2,2654.1,1.37134]
[1752069862020,5.05891245,2654.8,2654.7,0.75327]
[1752069862224,5.05891245,2654.8,2654.7,4.06063327]
[1752069862225,2.33085,2654.8,2654.7,4.06063327]
[1752069862519,2.33085,2654.8,2654.7,0.75327]
[1752069862722,1.5776,2654.8,2654.5,3.8932]
[1752069862918,0.7533,2654.6,2654.5,0.6854]
[1752069863923,0.75336,2654.4,2654.3,0.75337]
[1752069864130,0.75344,2654.1,2654.0,0.6854]
[1752069864331,0.7535,2653.9,2653.8,0.75917323]
[1752069864520,0.7535,2653.9,2653.8,0.00565323]
[1752069864927,28.4203,2653.9,2653.8,0.00565323]
[1752069867234,1.7063,2653.9,2653.8,0.00565323]
[1752069867434,28.4173,2653.9,2653.8,0.00565323]
[1752069868531,0.75361,2653.5,2653.4,3.96143]
[1752069868832,0.00565323,2654.1,2654.0,0.75347]
[1752069869030,53.43065323,2654.1,2654.0,0.75347]
[1752069870033,54.18409323,2654.1,2654.0,0.75347]
[1752069870236,53.43065323,2654.1,2654.0,0.75347]
[1752069871131,53.43065323,2654.1,2653.8,0.6734]
[1752069871332,0.9528,2654.0,2653.8,0.6734]
[1752069871537,0.7535,2653.9,2653.8,1.4269]
[1752069871839,1.7063,2653.9,2653.8,0.7535]
[1752069872137,0.9528,2653.9,2653.5,5.84538327]
[1752069872436,53.428,2653.8,2653.7,0.75356]
[1752069872637,53.428,2653.8,2653.6,0.75356]
[1752069872837,1.37838,2653.7,2653.6,0.75356]
[1752069873335,0.6248,2653.7,2653.6,1.37146]
[1752069873534,0.6248,2653.7,2653.6,0.75356]
[1752069873733,53.428,2653.8,2653.7,0.75356]
[1752069873932,53.428,2653.8,2653.7,4.57926]
[1752069874730,53.428,2653.8,2653.7,3.96136]
[1752069874939,53.428,2653.8,2653.7,4.57926]
[1752069875639,54.96644465,2653.8,2653.7,4.57926]
[1752069875836,55.71998205,2653.8,2653.7,4.57926]
[1752069876036,54.96645205,2653.8,2653.7,4.57926]
[1752069876744,0.75358,2653.6,2653.5,0.654]
[1752069876942,54.84438,2653.6,2653.5,2.02549]
[1752069877135,56.38283205,2653.6,2653.5,2.02549]
[1752069877540,54.84438,2653.6,2653.5,2.02549]
[1752069877741,54.0908,2653.6,2653.5,2.02549]
[1752069877943,53.466,2653.6,2653.5,2.02549]
[1752069878338,54.21958,2653.6,2653.5,2.02549]
[1752069878737,53.466,2653.6,2653.5,2.02549]